bitfinex/quotes_ETHUSD_20251218
["timestamp","ask_amount","ask_price","bid_price","bid_amount"]
[1766066995840,0.60152781,2973.8,2972.3,0.56]
[1766066995841,0.04152781,2973.5,2972.3,0.56]
[1766066996014,0.46438023,2973.1,2972.3,1.3796]
[1766066996333,0.46438023,2973.1,2971.5,3.36527126]
[1766066996334,7.2912,2972.8,2971.5,7.636]
[1766066996505,9.81,2972.6,2971.6,8.196]
[1766066996705,0.56,2973.3,2972.1,1.1749]
[1766066996901,0.46438023,2973.4,2972.4,8.8109]
[1766066997134,0.46438023,2973.4,2972.1,0.56]
[1766066997135,2.5188,2973.2,2972.2,7.636]
[1766066997443,9.81,2973.2,2972.3,8.4556]
[1766066997606,2.5188,2973.0,2972.1,0.56]
[1766066997807,0.50590804,2972.9,2972.1,0.56]
[1766066998007,2.98318023,2972.9,2972.1,0.56]
[1766066998209,7.2912,2972.8,2972.1,0.56]
[1766066998535,2.98318023,2972.6,2971.8,7.636]
[1766066998715,1.36382174,2972.6,2971.6,0.561]
[1766066998910,2.5188,2972.4,2971.6,0.561]
[1766066999116,0.56,2972.6,2971.9,7.636]
[1766066999526,0.50590804,2972.7,2971.6,0.561]
[1766066999816,0.405504,2973.5,2970.2,7.636]
[1766066999817,9.81,2972.3,2970.2,7.636]
[1766067000016,0.46438023,2972.0,2970.8,1.1759]
[1766067000251,0.46438023,2972.0,2970.9,7.636]
[1766067000413,2.4064,2973.1,2971.4,7.7774]
[1766067000744,2.4064,2972.6,2971.6,7.7774]
[1766067000945,0.46438023,2972.4,2971.7,0.77774]
[1766067001134,0.46438023,2972.4,2971.2,1.7359]
[1766067001135,2.4064,2972.2,2971.2,1.7359]
[1766067001441,2.4064,2972.2,2971.2,9.5133]
[1766067001649,7.97868023,2972.0,2970.8,8.3374]
[1766067001887,0.56,2971.9,2971.1,7.7774]
[1766067002346,2.4064,2973.1,2971.6,1.1759]
[1766067002550,3.67142023,2973.0,2971.7,7.7774]
[1766067002753,2.4064,2972.5,2971.3,8.9533]
[1766067002930,2.4064,2972.3,2971.3,7.7774]
[1766067003127,2.4064,2972.1,2971.0,8.182904]
[1766067003339,1.02438023,2972.0,2971.0,7.7774]
[1766067003544,1.02438023,2972.0,2971.1,0.95133]
[1766067003545,3.43078023,2972.0,2971.1,0.95133]
[1766067003755,2.4064,2972.9,2971.3,1.1759]
[1766067004056,10.08810276,2973.8,2972.0,1.1759]
[1766067004057,6.72540184,2973.8,2972.0,1.1759]
[1766067004361,8.60351506,2973.9,2972.1,8.9533]
[1766067004362,2.4064,2973.3,2972.1,8.9533]
[1766067004552,2.9664,2973.2,2972.1,8.9533]
[1766067004739,11.96576373,2974.2,2972.2,1.20954511]
[1766067004914,2.4064,2973.7,2972.5,7.7774]
[1766067005121,0.60152781,2974.1,2972.0,7.7774]
[1766067005122,2.87078023,2973.1,2972.0,7.7774]
[1766067005424,10.4807,2973.0,2972.0,7.7774]
[1766067005623,0.56,2972.9,2972.0,7.7774]
[1766067005829,0.56,2972.9,2971.8,1.7359]
[1766067005830,0.56,2972.9,2972.1,8.55514]
[1766067006066,0.56,2972.9,2971.8,7.7774]
[1766067006267,2.87078023,2972.6,2971.5,7.7774]
[1766067006726,0.56,2972.5,2971.5,7.7774]
[1766067006925,0.56,2972.4,2971.7,7.7774]
[1766067007155,0.56,2972.5,2971.7,8.9533]
[1766067007356,0.46438023,2972.6,2971.8,8.67273]
[1766067007542,0.46438023,2972.6,2971.8,9.28863]
[1766067007743,0.46438023,2972.9,2971.8,0.89533]
[1766067007962,7.5143,2972.5,2971.5,7.7774]
[1766067008164,2.9664,2972.4,2971.5,7.7774]
[1766067008542,0.405504,2973.6,2971.6,0.405504]
[1766067008744,1.64179322,2974.1,2971.1,0.405504]
[1766067008745,2.4064,2973.4,2972.2,7.7774]
[1766067008945,1.55207,2973.3,2972.2,7.7774]
[1766067009147,0.56,2973.2,2972.2,7.7774]
[1766067009340,3.39847,2973.3,2972.2,7.7774]
[1766067009544,1.02438023,2973.2,2972.2,7.7774]
[1766067009866,0.46438023,2973.1,2972.2,7.7774]
[1766067010060,0.46438023,2973.1,2972.2,8.67273]
[1766067010427,0.56,2973.2,2972.2,0.89533]
[1766067010646,2.87078023,2973.1,2972.2,7.7774]
[1766067010840,2.87078023,2973.1,2971.3,0.405504]
[1766067010841,2.4064,2973.1,2971.8,0.405504]
[1766067011139,0.46438023,2973.3,2972.1,8.3933]
[1766067011344,1.02438023,2973.3,2972.3,7.7774]
[1766067011552,0.46438023,2973.3,2971.9,0.405504]
[1766067011749,0.46438023,2973.1,2972.1,8.3933]
[1766067011948,2.4064,2973.5,2972.3,7.7774]
[1766067012137,2.4064,2973.2,2972.3,7.7774]
[1766067012351,2.87078023,2973.2,2972.3,7.7774]
[1766067012549,2.98078023,2973.1,2972.3,7.7774]
[1766067012749,0.46438023,2973.0,2972.3,7.7774]
[1766067013952,8.60351506,2974.4,2972.4,6.7285695]
[1766067014150,3.0764,2974.4,2973.2,7.5773]
[1766067014437,3.0764,2974.4,2973.2,8.7532]
[1766067014438,2.5164,2974.4,2973.2,8.7532]
[1766067014654,0.94463169,2974.3,2973.2,8.1373]
[1766067014858,0.34610317,2974.2,2973.2,8.1373]
[1766067015677,0.46438023,2974.1,2973.2,8.1373]
[1766067015833,2.5164,2973.9,2973.2,0.56]
[1766067016036,0.8096834,2974.2,2973.2,0.56]
[1766067016270,0.46438023,2973.9,2972.3,7.5783]
[1766067016566,2.98078023,2973.6,2972.6,7.5773]
[1766067016733,2.98078023,2973.6,2972.7,0.56]
[1766067016939,6.3437171,2973.6,2972.7,8.1373]
[1766067017335,8.07248023,2974.1,2972.7,8.1373]
[1766067017546,8.07248023,2974.1,2972.9,7.5773]
[1766067017547,3.0754,2974.0,2972.9,7.5773]
[1766067017748,1.4510242,2973.9,2972.9,7.5773]
[1766067017943,2.98078023,2973.8,2972.9,7.5773]
[1766067018473,1.4510242,2973.9,2972.9,7.5773]
[1766067018762,1.4510242,2973.9,2972.7,0.56]
[1766067018763,2.5164,2973.5,2972.7,0.56]
[1766067018934,2.5164,2973.5,2972.4,7.5773]
[1766067018935,3.0754,2973.4,2972.4,8.1363]
[1766067019140,0.46438023,2973.3,2972.4,8.1363]
[1766067019350,2.98078023,2973.3,2972.4,8.1363]
[1766067019572,3.36236244,2974.1,2972.4,8.1363]
[1766067019573,0.002,2974.3,2973.2,0.6159]
[1766067019779,2.5164,2974.1,2973.0,7.5773]
[1766067020065,3.3641802,2974.3,2972.7,8.1363]
[1766067020066,2.5164,2973.8,2972.7,8.1363]
[1766067020268,10.1245,2974.2,2972.9,8.1932]
[1766067020578,2.5164,2974.2,2973.1,8.1932]
[1766067020801,3.0754,2974.2,2973.1,8.7522]
[1766067020948,7.08160998,2974.2,2973.1,8.7522]
[1766067021149,2.5164,2974.0,2973.1,8.1363]
[1766067021475,0.46438023,2973.9,2973.1,8.1363]
[1766067022145,0.46438023,2973.9,2972.5,0.405504]
[1766067022146,3.0754,2973.9,2972.5,7.5773]
[1766067022384,0.46438023,2973.4,2972.3,8.1373]
[1766067022562,2.5164,2973.3,2972.3,8.95103]
[1766067022766,1.05888802,2973.4,2972.5,7.5773]
[1766067022967,3.82734585,2973.6,2972.5,7.5773]
[1766067023172,0.46438023,2973.4,2972.5,7.5773]
[1766067024175,0.46438023,2973.4,2972.3,1.37373]
[1766067024176,0.46438023,2973.5,2972.7,7.5773]
[1766067024486,3.16035575,2974.2,2972.9,8.1932]
[1766067024649,2.5164,2973.9,2972.9,7.5773]
[1766067024849,0.46438023,2973.7,2972.9,7.5773]
[1766067025577,2.98078023,2973.6,2972.7,8.1363]
[1766067026657,2.5164,2973.9,2972.7,8.1363]
[1766067026988,0.46438023,2973.8,2972.8,0.6159]
[1766067027286,0.46438023,2973.8,2972.9,7.5773]
[1766067027456,0.46438023,2973.8,2972.9,8.45252]
[1766067027658,0.46438023,2973.9,2973.1,7.5773]
[1766067027858,0.002,2974.2,2973.3,7.5773]
[1766067028059,0.46438023,2974.1,2973.3,7.5773]
[1766067028779,2.5184,2974.2,2973.3,7.5773]
[1766067028780,0.46638023,2974.2,2973.3,7.5773]
[1766067028981,2.5164,2974.1,2973.3,7.5773]
[1766067029280,2.5164,2974.1,2973.2,0.559]
[1766067029281,2.98078023,2974.0,2973.2,0.559]
[1766067029486,8.07248023,2973.8,2972.5,8.1932]
[1766067029775,3.80320498,2974.2,2972.6,0.6159]
[1766067029974,3.80320498,2974.2,2972.5,0.559]
[1766067029975,2.98078023,2974.0,2972.9,8.1932]
[1766067030148,2.98078023,2974.0,2973.1,7.5773]
[1766067031854,0.46438023,2973.8,2973.1,7.5773]
[1766067033269,0.46438023,2973.9,2973.1,7.5773]
[1766067033444,0.002,2974.2,2973.1,7.5773]
[1766067033648,0.002,2974.2,2973.3,8.1932]
[1766067033950,0.002,2974.2,2973.7,7.5773]
[1766067035070,0.002,2974.2,2973.4,0.559]
[1766067035658,10.1265,2974.2,2973.4,0.559]
[1766067036079,10.1265,2974.2,2973.4,8.1363]
[1766067036274,0.002,2974.2,2973.4,8.7522]
[1766067036475,0.002,2974.2,2973.4,9.708783]
[1766067036671,0.002,2974.3,2973.5,7.6109304]
[1766067036872,0.002,2974.3,2973.4,1.515583]
[1766067036873,8.1661,2975.0,2973.7,8.1912]
[1766067037193,2.5164,2974.8,2973.7,8.7492]
[1766067037355,0.46438023,2974.7,2973.7,8.7492]
[1766067037684,2.5164,2974.7,2973.7,9.6646704]
[1766067037890,0.46438023,2974.6,2973.7,9.6646704]
[1766067038951,0.46438023,2974.6,2973.7,9.0507704]
[1766067039356,0.46438023,2974.6,2973.7,8.1353]
[1766067039357,2.98078023,2974.6,2973.7,8.1353]
[1766067039660,2.5164,2974.3,2973.7,0.558]
[1766067039865,10.1245,2974.2,2973.7,0.558]
[1766067040057,0.46438023,2973.7,2972.7,7.5773]
[1766067040255,0.46438023,2973.7,2973.1,7.5773]
[1766067040256,0.558,2973.7,2973.1,7.5773]
[1766067040477,8.013604,2974.5,2973.1,7.5773]
[1766067040679,2.5164,2973.7,2973.0,0.001]
[1766067040885,10.1245,2973.7,2973.0,0.001]
[1766067042289,0.46438023,2973.6,2973.0,0.001]
[1766067042872,0.558,2974.0,2973.1,7.6058]
[1766067043589,7.5314,2974.0,2973.1,7.6058]
[1766067043761,0.75314,2973.9,2973.1,7.6058]
[1766067044161,0.558,2974.2,2973.3,7.6058]
[1766067044367,2.5074,2974.3,2973.5,7.6058]
[1766067044579,0.46438023,2974.2,2973.2,8.1638]
[1766067044899,0.002,2976.0,2974.2,2.4068]
[1766067045105,0.002,2976.0,2974.6,0.405504]
[1766067045296,8.0894,2976.8,2975.2,0.405504]
[1766067045460,8.0894,2976.8,2975.5,10.0126]
[1766067045665,7.5314,2976.6,2975.3,0.558]
[1766067045959,0.002,2977.2,2975.3,0.558]
[1766067046285,0.002,2976.6,2975.7,2.4068]
[1766067046791,0.75534,2976.6,2975.7,2.4068]
[1766067046988,4.15640933,2976.6,2975.7,2.4068]
[1766067047189,4.11492543,2976.6,2975.4,2.87118023]
[1766067047492,10.0388,2976.5,2975.4,10.47698023]
[1766067047995,1.31334,2976.6,2975.4,0.46438023]
[1766067048199,0.56,2976.6,2975.5,10.0126]
[1766067048693,13.95834677,2976.6,2975.5,10.0126]
[1766067048895,3.91954677,2976.6,2975.3,0.558]
[1766067049098,10.0388,2976.2,2975.3,0.558]
[1766067049892,7.27909354,2976.6,2974.4,10.0126]
[1766067049893,10.0388,2976.0,2974.4,10.0126]
[1766067050067,10.0388,2975.8,2974.6,10.0126]
[1766067050495,1.02238023,2975.9,2974.5,7.6058]
[1766067050790,2.5074,2975.7,2974.7,7.6058]
[1766067050973,10.0388,2975.7,2974.7,7.6058]
[1766067051180,1.00388,2975.6,2974.7,7.6058]
[1766067051385,11.04268,2975.6,2974.6,2.4068]
[1766067051569,7.5314,2975.6,2974.5,0.46438023]
[1766067051775,2.5074,2975.5,2974.5,0.46438023]
[1766067052070,3.0654,2975.5,2974.5,0.46438023]
[1766067052273,10.5968,2975.5,2974.5,0.46438023]
[1766067052687,11.65648,2975.5,2974.5,0.46438023]
[1766067053479,1.61768,2975.5,2974.5,0.46438023]
[1766067053697,10.0388,2975.4,2974.5,0.46438023]
[1766067053896,10.0388,2975.4,2974.2,10.0126]
[1766067054095,2.5074,2975.3,2974.3,7.6058]
[1766067054272,10.0388,2975.2,2974.3,7.6058]
[1766067054664,0.59852781,2975.1,2973.9,0.557]
[1766067054865,7.5314,2974.9,2973.9,0.557]
[1766067055177,10.0388,2974.7,2973.9,0.557]
[1766067055602,1.02138023,2975.0,2973.9,10.5696]
[1766067055781,0.46438023,2975.2,2974.2,7.6058]
[1766067055976,1.02138023,2975.2,2973.9,0.557]
[1766067056178,1.02138023,2975.2,2974.1,2.4068]
[1766067056485,1.02138023,2975.2,2974.2,10.0126]
[1766067056486,1.99912209,2975.2,2974.2,10.0126]
[1766067056679,7.5314,2975.0,2973.6,7.6058]
[1766067056987,3.36128779,2975.1,2973.8,0.46438023]
[1766067057188,10.0388,2975.0,2973.8,0.46438023]
[1766067057419,7.5314,2975.0,2973.8,0.46438023]
[1766067057581,10.0388,2974.7,2973.8,2.12477825]
[1766067057919,2.5074,2974.6,2973.0,0.001]
[1766067058072,10.0388,2974.4,2973.3,0.557]
[1766067058501,10.0388,2974.4,2973.3,1.02138023]
[1766067058707,10.5958,2974.4,2973.3,1.02138023]
[1766067059215,2.5074,2974.3,2973.3,0.46438023]
[1766067059410,10.0388,2974.3,2973.0,0.001]
[1766067059711,10.0388,2973.8,2973.0,0.001]
[1766067059925,1.73198997,2974.2,2973.1,10.0126]
[1766067060228,0.46438023,2974.3,2973.1,10.0126]
[1766067060229,11.06018023,2974.3,2973.1,10.5696]
[1766067060388,2.5074,2973.9,2973.1,0.557]
[1766067060587,1.02138023,2974.3,2973.1,0.557]
[1766067060898,2.5854,2973.9,2973.1,0.557]
[1766067061094,10.2808,2973.9,2973.1,0.557]
[1766067061489,10.2808,2973.9,2973.4,0.001]
[1766067063285,14.46407129,2974.2,2973.4,0.001]
[1766067063588,7.6954,2974.0,2973.4,0.001]
[1766067063788,2.5854,2973.9,2973.4,0.001]
[1766067063990,10.2808,2973.9,2973.4,0.001]
[1766067064233,0.46438023,2974.1,2973.4,0.001]
[1766067064234,10.2808,2973.8,2973.4,0.001]
[1766067064385,3.36193895,2974.5,2973.4,0.001]
[1766067064386,10.2808,2975.6,2973.6,0.405504]
[1766067064586,2.5854,2975.1,2973.5,0.405504]
[1766067064792,0.46438023,2974.6,2973.7,9.6733]
[1766067065006,0.46438023,2974.6,2973.5,0.557]
[1766067065007,0.04152781,2974.6,2973.3,7.2432]
[1766067065207,0.04152781,2974.6,2973.0,0.001]
[1766067065208,8.15978023,2974.0,2973.0,0.001]
[1766067065411,8.15978023,2974.0,2972.3,0.001]
[1766067065412,7.6954,2973.8,2972.3,0.001]
[1766067065620,7.6954,2973.8,2972.2,0.001]
[1766067065621,8.15978023,2973.3,2971.1,0.001]
[1766067065815,8.15978023,2972.9,2971.2,0.24311]
[1766067066003,0.557,2972.8,2971.1,9.6743]
[1766067066317,0.46438023,2972.6,2971.2,9.6733]
[1766067066518,0.557,2972.8,2971.1,0.001]
[1766067066519,7.6954,2972.4,2971.1,0.001]
[1766067066695,7.6954,2972.0,2971.1,0.001]
[1766067067098,0.46438023,2972.7,2971.1,0.001]
[1766067067326,2.5854,2972.8,2971.3,9.6733]
[1766067067498,2.5854,2972.8,2971.7,7.2432]
[1766067067688,2.5854,2972.8,2971.4,1.35959435]
[1766067067689,7.73692781,2972.7,2971.4,1.35959435]
[1766067067890,7.73692781,2972.7,2971.1,0.001]
[1766067067891,0.46438023,2972.6,2971.1,0.001]
[1766067068096,0.46438023,2972.2,2971.1,0.001]
[1766067068421,8.15978023,2972.0,2971.1,0.001]
[1766067069125,0.46438023,2971.7,2971.1,0.001]
[1766067069333,0.46438023,2972.7,2971.1,0.001]
[1766067069495,0.46438023,2971.8,2971.1,0.001]
[1766067069694,0.46438023,2971.6,2971.0,0.001]
[1766067069935,7.6954,2971.4,2970.2,0.557]
[1766067070237,2.5854,2971.5,2970.1,7.2432]
[1766067070238,0.46438023,2971.1,2970.1,7.2432]
[1766067070619,1.02138023,2971.1,2970.1,7.2432]
[1766067070925,0.46438023,2970.7,2970.2,0.96733]
[1766067071126,1.02138023,2970.7,2969.9,0.001]
[1766067071425,10.2808,2970.8,2969.9,0.001]
[1766067071426,0.557,2970.6,2969.9,0.001]
[1766067071594,0.557,2970.5,2969.9,0.001]
[1766067072004,0.557,2970.5,2969.1,9.6733]
[1766067072302,0.04152781,2971.1,2969.1,9.6733]
[1766067072303,0.405504,2970.9,2969.1,9.6733]
[1766067072509,0.46438023,2970.5,2969.2,0.96733]
[1766067072715,2.6143,2970.3,2969.2,0.96733]
[1766067073025,10.61600639,2971.3,2968.7,10.7356]
[1766067073026,10.79348023,2970.5,2969.3,7.70667797]
[1766067073228,0.46438023,2970.3,2968.7,0.558]
[1766067073528,10.79348023,2970.3,2968.9,2.5046]
[1766067073835,10.79348023,2970.3,2968.9,10.1776]
[1766067073836,10.3291,2970.0,2968.9,10.1776]
[1766067074005,0.557,2969.9,2968.7,0.001]
[1766067074206,9.00906735,2969.6,2968.7,0.001]
[1766067074407,9.00906735,2969.6,2966.9,0.05]
[1766067074408,0.46438023,2969.1,2967.1,2.5046]
[1766067074712,2.6143,2969.2,2967.6,3.36962776]
[1766067075028,2.6143,2969.2,2966.7,10.0]
[1766067075029,7.7148,2969.0,2967.7,0.03369612]
[1766067075348,1.02138023,2969.1,2967.5,0.557]
[1766067075349,1.02138023,2969.1,2967.8,2.5046]
[1766067075647,7.7148,2969.0,2967.9,10.42806]
[1766067075799,0.46438023,2968.9,2967.9,0.25046]
[1766067075999,0.46438023,2968.8,2967.6,2.5046]
[1766067076305,7.7148,2968.0,2965.5,7.167375]
[1766067076492,9.00906735,2968.6,2966.1,2.5046]
[1766067076694,9.00906735,2968.6,2965.2,6.74485217]
[1766067076695,2.6143,2968.0,2966.6,7.673]
[1766067076951,8.73618023,2967.9,2966.7,7.673]
[1766067077127,8.73618023,2967.9,2966.8,0.7673]
[1766067077128,0.04152781,2967.8,2966.8,0.7673]
[1766067077340,10.3291,2967.5,2965.8,3.92869227]
[1766067077638,0.557,2967.4,2966.0,7.673]
[1766067077799,0.557,2967.4,2966.4,7.673]
[1766067077995,9.00906735,2969.4,2966.7,7.673]
[1766067078231,2.6143,2968.6,2967.1,10.1776]
[1766067078544,0.405504,2968.2,2966.8,1.01776]
[1766067078698,0.46438023,2968.0,2966.8,1.01776]
[1766067078901,7.7148,2967.6,2966.6,2.5046]
[1766067079206,0.46438023,2967.3,2966.6,2.5046]
[1766067079454,0.557,2967.2,2966.6,2.5046]
[1766067079594,0.557,2967.1,2966.6,2.5046]
[1766067080628,0.46438023,2967.0,2966.3,0.001]
[1766067080837,2.6143,2966.9,2966.3,0.001]
[1766067081225,3.07868023,2967.5,2966.3,0.001]
[1766067081527,2.6143,2967.1,2966.3,0.001]
[1766067081818,10.3291,2966.8,2966.3,0.001]
[1766067082020,0.557,2966.7,2966.3,0.001]
[1766067082424,3.67782151,2967.4,2966.3,0.001]
[1766067082425,0.557,2966.9,2966.3,0.001]
[1766067082622,0.04152781,2966.8,2966.3,0.001]
[1766067082827,0.557,2966.9,2965.5,7.673]
[1766067082828,0.557,2966.7,2965.5,7.673]
[1766067083026,0.30786802,2967.4,2965.7,7.673]
[1766067083027,0.557,2966.6,2965.7,7.673]
[1766067083215,2.6143,2967.1,2965.8,0.03371771]
[1766067083422,0.557,2967.0,2966.1,7.673]
[1766067083617,6.44853316,2967.5,2966.1,7.673]
[1766067083618,0.557,2966.9,2966.1,7.673]
[1766067083845,0.557,2966.9,2964.4,3.37332878]
[1766067083846,0.46438023,2966.8,2965.7,7.673]
[1766067084051,0.557,2966.9,2965.9,8.2456]
[1766067084221,0.50590804,2966.8,2965.3,8.2456]
[1766067084532,0.46438023,2966.5,2965.5,7.673]
[1766067084935,0.46438023,2966.5,2965.6,0.5726]
[1766067085134,0.46438023,2966.5,2965.1,0.001]
[1766067085135,2.6143,2966.3,2965.1,0.001]
[1766067085334,0.46438023,2965.8,2965.1,0.001]
[1766067085534,1.07443781,2966.2,2965.2,7.673]
[1766067085535,1.03291,2966.2,2965.2,7.673]
[1766067085735,3.37117834,2966.4,2965.2,7.673]
[1766067085736,0.557,2965.9,2965.2,7.673]
[1766067086324,0.557,2965.9,2965.1,0.001]
[1766067086528,0.002,2967.0,2965.2,7.673]
[1766067086729,2.6143,2967.6,2965.6,7.673]
[1766067086954,2.6143,2967.6,2965.1,9.01006735]
[1766067086955,2.6143,2967.3,2965.7,8.23]
[1766067087153,0.46438023,2967.0,2965.8,8.496]
[1766067087458,0.26143,2967.2,2966.0,7.673]
[1766067087750,2.6143,2967.4,2966.1,0.5726]
[1766067087953,0.557,2967.4,2966.4,7.673]
[1766067088121,7.7148,2967.7,2966.6,7.673]
[1766067088122,0.557,2967.7,2966.6,7.673]
[1766067088745,2.6143,2968.0,2966.8,8.2456]
[1766067088954,2.6143,2967.9,2966.8,7.673]
[1766067089159,0.002,2968.2,2966.8,8.2456]
[1766067089347,0.002,2968.2,2967.0,8.2456]
[1766067089645,3.07868023,2967.5,2966.5,0.82456]
[1766067089937,8.73618023,2967.4,2966.2,7.673]
[1766067090132,8.17918023,2967.4,2966.2,7.673]
[1766067090551,0.46438023,2967.2,2965.7,8.8034]
[1766067090757,0.46438023,2967.2,2965.9,7.673]
[1766067091244,0.46438023,2967.2,2966.1,7.673]
[1766067091442,0.557,2967.4,2966.0,0.60711544]
[1766067091443,8.17918023,2967.6,2966.2,8.50101154]
[1766067091649,0.557,2967.9,2966.8,7.673]
[1766067092189,2.6143,2967.7,2966.6,0.557]
[1766067092334,2.6143,2967.7,2965.9,0.405504]
[1766067092335,7.7148,2967.3,2966.1,8.23]
[1766067092664,0.46438023,2967.2,2966.1,8.23]
[1766067092961,0.46438023,2967.2,2966.2,8.496]
[1766067093164,0.04152781,2967.2,2966.2,9.0694]
[1766067093336,2.6143,2967.4,2966.2,9.0694]
[1766067093535,0.46438023,2967.2,2966.2,8.496]
[1766067094130,0.46438023,2967.2,2966.1,0.001]
[1766067094131,0.46438023,2967.0,2966.1,0.001]
[1766067094367,8.58468423,2967.0,2966.1,0.001]
[1766067094664,8.58468423,2967.0,2965.0,0.001]
[1766067094665,2.6143,2966.5,2965.3,0.557]
[1766067094964,2.6143,2966.4,2965.2,7.673]
[1766067095173,0.46438023,2966.3,2965.3,8.4404]
[1766067095564,2.6143,2966.2,2965.0,0.5754]
[1766067095776,0.50590804,2966.1,2965.0,0.5754]
[1766067096277,0.46438023,2965.8,2965.0,0.001]
[1766067096481,2.6143,2965.8,2965.0,0.001]
[1766067096681,0.557,2965.7,2965.0,0.001]
[1766067096886,10.3291,2966.3,2965.0,0.001]
[1766067097178,1.02138023,2966.2,2965.1,7.674]
[1766067097388,2.6143,2966.0,2965.1,0.001]
[1766067097556,0.557,2965.9,2965.1,0.001]
[1766067097757,0.46438023,2966.1,2965.1,7.674]
[1766067098007,0.46438023,2966.5,2965.1,0.001]
[1766067098296,3.07868023,2966.1,2965.1,0.001]
[1766067098465,0.557,2966.2,2965.2,7.673]
[1766067098666,2.6143,2966.0,2965.1,0.8242]
[1766067098986,0.557,2966.2,2965.1,7.674]
[1766067099189,0.46438023,2966.0,2965.1,7.674]
[1766067099394,0.46438023,2966.0,2965.1,0.001]
[1766067099395,0.46438023,2965.8,2965.1,0.001]
[1766067099575,2.6143,2965.8,2965.1,0.001]
[1766067099774,7.7148,2966.1,2965.1,0.001]
[1766067099775,2.6143,2966.9,2965.2,8.2474]
[1766067099969,10.10951979,2967.5,2965.6,7.673]
[1766067099970,2.6143,2967.1,2965.6,7.673]
[1766067100292,0.557,2967.1,2966.0,7.673]
[1766067100483,0.557,2967.1,2966.4,7.673]
[1766067100680,0.557,2967.1,2965.9,8.23]
[1766067100868,7.7148,2966.9,2965.9,7.673]
[1766067101074,10.3291,2966.7,2965.5,7.673]
[1766067101389,0.557,2966.6,2965.5,7.673]
[1766067101567,1.02138023,2966.6,2965.5,7.673]
[1766067101764,0.557,2966.7,2965.7,7.673]
[1766067101975,8.17918023,2966.5,2965.3,8.49784]
[1766067102161,2.6143,2966.1,2965.1,0.001]
[1766067102362,0.46438023,2965.6,2965.1,0.001]
[1766067102780,3.04808023,2965.5,2964.6,7.4865]
[1766067103009,0.46438023,2965.9,2964.6,8.0609]
[1766067103293,0.46438023,2965.9,2965.0,7.4865]
[1766067103496,10.69018023,2965.9,2964.6,0.5744]
[1766067103796,14.06187275,2965.9,2964.6,8.0609]
[1766067104099,0.46438023,2965.7,2964.6,8.0609]
[1766067104598,3.04808023,2965.7,2964.6,8.0609]
[1766067104795,2.5837,2965.5,2964.3,7.4865]
[1766067104987,1.58909825,2965.7,2964.5,8.0609]
[1766067105186,0.46438023,2965.7,2964.6,8.0609]
[1766067105367,0.46438023,2965.7,2964.8,7.4865]
[1766067105894,0.46438023,2965.4,2964.3,7.4865]
[1766067106097,0.46438023,2965.2,2964.1,7.4865]
[1766067106264,2.5837,2965.8,2964.1,0.5744]
[1766067106464,0.46438023,2965.6,2964.4,7.4865]
[1766067106668,2.5837,2965.6,2964.4,8.0609]
[1766067106866,0.46438023,2965.4,2964.0,7.4865]
[1766067107066,0.46438023,2965.0,2964.0,7.4865]
[1766067107298,2.5837,2964.9,2963.9,0.001]
[1766067107599,13.598596,2964.9,2963.9,0.001]
[1766067107800,8.66162518,2964.5,2961.9,7.4865]
[1766067108002,10.11841935,2964.9,2962.3,3.37575038]
[1766067108003,10.2258,2963.9,2962.3,3.37575038]
[1766067108321,0.86988423,2964.2,2962.0,0.557]
[1766067108322,7.6421,2963.1,2962.0,0.557]
[1766067108475,7.6421,2963.1,2960.6,3.50090821]
[1766067108476,0.87095083,2963.0,2961.8,7.4865]
[1766067108673,0.557,2963.4,2962.4,0.5744]
[1766067108895,0.557,2963.4,2962.6,8.0609]
[1766067109100,0.46438023,2963.7,2962.6,8.0609]
[1766067109303,2.5837,2963.2,2961.4,8.0609]
[1766067109513,7.6421,2963.1,2961.6,7.4865]
[1766067109802,2.5837,2963.0,2961.8,7.4865]
[1766067110002,2.5837,2962.8,2961.3,0.557]
[1766067110206,1.02138023,2962.7,2960.6,8.18415881]
[1766067110406,0.46438023,2962.3,2961.0,0.5744]
[1766067110574,7.6421,2962.5,2961.2,7.4865]
[1766067110575,0.557,2962.2,2961.2,7.4865]
[1766067110981,0.46438023,2962.7,2961.0,0.557]
[1766067111211,10.2258,2962.8,2961.4,0.5744]
[1766067111410,3.37352623,2964.3,2961.0,3.93412423]
[1766067111411,7.6421,2963.5,2961.9,8.0609]
[1766067111709,2.5837,2962.6,2962.0,0.80609]
[1766067111917,8.2001,2962.5,2961.1,0.405504]
[1766067112209,8.2001,2962.5,2959.9,3.37848363]
[1766067112210,3.04808023,2961.9,2960.6,7.60975881]
[1766067112378,3.04808023,2961.7,2960.6,7.60975881]
[1766067112581,0.558,2961.8,2960.6,7.60975881]
[1766067112808,0.558,2961.8,2960.6,0.12325881]
[1766067112809,2.5837,2961.7,2960.6,0.12325881]
[1766067113001,0.405504,2962.4,2960.1,0.5744]
[1766067113310,2.5837,2961.2,2959.7,7.4865]
[1766067113500,7.6421,2961.9,2960.1,8.0609]
[1766067113701,0.46438023,2962.0,2960.5,7.4865]
[1766067114034,8.2001,2963.0,2961.0,0.405504]
[1766067114312,10.7838,2962.9,2961.6,8.0609]
[1766067114555,10.783,2962.9,2961.6,8.0609]
[1766067114887,0.558,2962.8,2961.6,7.4865]
[1766067115088,0.558,2962.8,2961.8,7.4865]
[1766067115291,0.558,2962.8,2961.3,0.86988423]